fUSD/lending_fUSD_20240614
["ID","MTS","AMOUNT","RATE_DAILY","PERIOD"]
[329410022,1718326240929,-6057.17263617,0.00015,2]
[329410023,1718326240972,-4646.65252503,0.00015,2]
[329410024,1718326240988,-343.94,0.00015,2]
[329410025,1718326241006,-1274.25252714,0.00015,2]
[329410035,1718326247119,-2826.57715519,0.00015,2]
[329410102,1718326248948,-274.61824815,0.00014999,4]
[329410104,1718326248963,-1612554.72483519,0.00015,2]
[329410105,1718326248978,-2294.58497119,0.00015,2]
[329410108,1718326248997,-183.03,0.00015659,2]
[329410110,1718326249024,-174.81,0.0001589,4]
[329410113,1718326249059,-2582.4709868,0.00016264,2]
[329410114,1718326249070,-250.0,0.00016793,2]
[329410116,1718326249082,-1327.86,0.00016793,2]
[329410117,1718326249099,-4894.39175595,0.00016984,2]
[329410120,1718326249152,-293.46550194,0.00017056,2]
[329410122,1718326249174,-217.32093162,0.00017056,2]
[329410124,1718326249201,-625.97046574,0.00017056,2]
[329410125,1718326249214,-239.66069874,0.00017056,2]
[329410126,1718326249234,-407.43731595,0.00017056,2]
[329410128,1718326249248,-155.61375484,0.00017056,2]
[329410131,1718326249282,-1446.65511409,0.00017056,2]
[329410133,1718326249324,-179.69787641,0.00017056,2]
[329410135,1718326249336,-437.21892219,0.00017056,2]
[329410138,1718326249363,-5775.53904364,0.00017058,2]
[329410139,1718326249410,-593.03390837,0.00017058,2]
[329410142,1718326249424,-2582.4709868,0.00017627,2]
[329410143,1718326249446,-706.02,0.00017866,2]
[329410145,1718326249460,-500.0,0.000185,2]
[329410146,1718326249477,-2582.4709868,0.00018991,2]
[329410147,1718326249536,-4894.39175595,0.00019068,2]
[329410149,1718326249561,-552.27578662,0.00019178,2]
[329410151,1718326249576,-171.41656778,0.00019178,2]
[329410153,1718326249588,-173.52802265,0.00019178,2]
[329410155,1718326249610,-500.0,0.00019178,2]
[329410157,1718326249672,-500.0,0.00019178,2]
[329410160,1718326249705,-413.06618171,0.00019178,2]
[329410162,1718326249733,-746.41,0.0001924,2]
[329410164,1718326249758,-937.56930127,0.00019302,2]
[329410165,1718326249770,-1000.0,0.00019646,2]
[329410167,1718326249783,-399.55,0.00019667,2]
[329410169,1718326249795,-1000.0,0.0001969,2]
[329410171,1718326249821,-157.42,0.00019691,2]
[329410173,1718326249835,-157.42,0.00019697,2]
[329410175,1718326249846,-157.42,0.00019703,2]
[329410178,1718326249881,-157.42,0.00019709,2]
[329410180,1718326249917,-157.42,0.00019715,2]
[329410182,1718326249933,-157.42,0.00019721,2]
[329410185,1718326249953,-157.42,0.00019728,2]
[329410186,1718326249982,-157.42,0.00019734,2]
[329410187,1718326249992,-157.42,0.0001974,2]
[329410188,1718326250033,-157.42,0.00019746,2]
[329410189,1718326250118,-157.42,0.00019752,2]
[329410190,1718326250152,-157.42,0.00019758,2]
[329410192,1718326250168,-157.42,0.00019765,2]
[329410195,1718326250195,-157.42,0.00019771,2]
[329410196,1718326250256,-157.42,0.00019777,2]
[329410197,1718326250285,-157.42,0.00019783,2]
[329410198,1718326250309,-157.42,0.00019789,2]
[329410199,1718326250336,-250.0,0.00019978,2]
[329410200,1718326250365,-447.01444473,0.0002,2]
[329410201,1718326250420,-8048.5439902,0.0002,2]
[329410202,1718326250434,-226.76270483,0.000201,2]
[329410203,1718326250469,-706.02,0.0002013,2]
[329410204,1718326250490,-1273.32,0.00020284,2]
[329410205,1718326250520,-160.13,0.00020322,2]
[329410206,1718326250535,-2582.4709868,0.00020355,2]
[329410207,1718326250546,-162.092,0.00020416,2]
[329410208,1718326250564,-235.35916592,0.00020611,2]
[329410209,1718326250575,-358.0,0.00020612,2]
[329410211,1718326250586,-1269.0,0.00020612,2]
[329410212,1718326250608,-164.0,0.00020612,2]
[329410213,1718326250620,-616.0,0.00020612,2]
[329410214,1718326250632,-809.0,0.00020612,2]
[329410215,1718326250643,-446.0,0.00020612,2]
[329410216,1718326250654,-2540.18,0.00020612,2]
[329410217,1718326250664,-1303.0,0.00020612,2]
[329410218,1718326250675,-3176.0,0.00020612,2]
[329410219,1718326250686,-5785.0,0.00020612,2]
[329410220,1718326250715,-5148.0,0.00020612,2]
[329410221,1718326250744,-1573.0,0.00020612,2]
[329410222,1718326250763,-38070.0,0.00020612,2]
[329410223,1718326250793,-1194.0,0.00020612,2]
[329410224,1718326250805,-2790.0,0.000209,2]
[329410227,1718326250852,-669.0,0.000209,2]
[329410229,1718326250875,-1250.0,0.00021,2]
[329410231,1718326250886,-4894.39175595,0.00021152,2]
[329410232,1718326250905,-204.37562916,0.00021606,2]
[329410234,1718326250918,-155.0,0.00021606,2]
[329410236,1718326250931,-2582.4709868,0.00021718,2]
[329410238,1718326250953,-577.97,0.00021918,2]
[329410240,1718326250966,-250.0,0.00021918,2]
[329410242,1718326250977,-2551.95,0.0002192,2]
[329410244,1718326250990,-2551.95,0.0002192,2]
[329410247,1718326251016,-2551.95,0.0002192,2]
[329410249,1718326251057,-2551.95,0.0002192,2]
[329410251,1718326251068,-2551.95,0.0002192,2]
[329410253,1718326251089,-189.106774,0.00021934,2]
[329410254,1718326251107,-1241.352445,0.00021934,2]
[329410255,1718326251119,-162.091519,0.00021934,2]
[329410256,1718326251164,-790.86878271,0.00022,2]
[329410257,1718326251175,-1000.0,0.00022102,2]
[329410258,1718326251216,-1241.352445,0.00022208,2]
[329410259,1718326251291,-706.02,0.00022394,2]
[329410260,1718326251348,-1241.352445,0.00022482,2]
[329410261,1718326251384,-789.0,0.000227,2]
[329410262,1718326251420,-509.0,0.000227,2]
[329410263,1718326251456,-355.0,0.000227,2]
[329410264,1718326251491,-1000.0,0.000227,2]
[329410265,1718326251503,-1241.352445,0.00022756,2]
[329410266,1718326251534,-500.0,0.00023,2]
[329410267,1718326251588,-155.0,0.00023,2]
[329410268,1718326251634,-1273.32,0.00023024,2]
[329410269,1718326251658,-1241.352445,0.0002303,2]
[329410270,1718326251676,-189.106774,0.0002303,2]
[329410271,1718326251693,-2582.4709868,0.00023082,2]
[329410272,1718326251738,-4894.39175595,0.00023237,2]
[329410273,1718326251764,-151.0,0.00023597,2]
[329410274,1718326251777,-8816.86727383,0.00023868,2]
[329410275,1718326251820,-4000.0,0.000239,8]
[329410276,1718326251841,-152.33,0.00023999,2]
[329410277,1718326251860,-425.35728658,0.00024,3]
[329410278,1718326251871,-155.0,0.00024005,2]
[329410279,1718326251898,-442.75229546,0.00024007,2]
[329410280,1718326251917,-1780.9840789,0.00024007,2]
[329410281,1718326251944,-2740.33596024,0.00024007,2]
[329410282,1718326251967,-155.0799179,0.00024007,2]
[329410283,1718326251982,-155.0,0.00024007,2]
[329410284,1718326252030,-238.07079474,0.00024007,2]
[329410285,1718326252049,-411.95127253,0.00024008,2]
[329410286,1718326252096,-812.32066378,0.00024008,2]
[329410287,1718326252116,-2880.08191881,0.00024009,2]
[329410288,1718326252128,-4826.79351422,0.00024009,2]
[329410289,1718326252164,-193.23345319,0.00024009,2]
[329410290,1718326252185,-549.39902085,0.00024009,2]
[329410291,1718326252212,-867.6847,0.00024009,2]
[329410292,1718326252233,-1000.0,0.00024009,2]
[329410293,1718326252279,-24973.3284,0.00024009,2]
[329410294,1718326252347,-1000.0,0.00024009,2]
[329410295,1718326252361,-200254.8164,0.00024009,2]
[329410296,1718326252380,-152.33,0.00024099,2]
[329410297,1718326252392,-200.0,0.00024107,2]
[329410298,1718326252403,-2004.49651681,0.00024107,2]
[329410299,1718326252416,-159.30190403,0.00024107,2]
[329410300,1718326252478,-1806.78931483,0.00024107,2]
[329410301,1718326252543,-694.19540584,0.00024107,2]
[329410302,1718326252562,-150.0,0.00024108,2]
[329410303,1718326252574,-183.58255772,0.00024108,10]
[329410304,1718326252682,-500.0,0.00024109,2]
[329410305,1718326252713,-500.0,0.00024109,2]
[329410306,1718326252739,-357.81046779,0.00024109,2]
[329410307,1718326252753,-500.0,0.00024109,2]
[329410308,1718326252790,-398.57538755,0.00024109,2]
[329410309,1718326252802,-500.0,0.00024109,2]
[329410312,1718326252821,-500.0,0.00024109,2]
[329410313,1718326252840,-500.0,0.00024109,2]
[329410315,1718326252860,-500.0,0.00024109,2]
[329410316,1718326252884,-500.0,0.00024109,2]
[329410317,1718326252923,-500.0,0.00024109,2]
[329410318,1718326252938,-500.0,0.00024109,2]
[329410319,1718326252951,-500.0,0.00024109,2]
[329410320,1718326252962,-500.0,0.00024109,2]
[329410321,1718326252972,-500.0,0.00024109,2]
[329410322,1718326252991,-174.8473835,0.00024109,2]
[329410323,1718326253015,-500.0,0.00024109,2]
[329410324,1718326253037,-512.10396427,0.00024109,2]
[329410325,1718326253059,-155.79659829,0.00024109,2]
[329410326,1718326253089,-500.0,0.00024109,2]
[329410327,1718326253117,-500.0,0.00024109,2]
[329410328,1718326253135,-500.0,0.00024109,2]
[329410329,1718326253164,-524.24747003,0.00024109,2]
[329410330,1718326253176,-500.0,0.00024109,2]
[329410331,1718326253190,-500.0,0.00024109,2]
[329410332,1718326253208,-500.0,0.00024109,2]
[329410333,1718326253218,-258.496192,0.00024109,7]
[329410334,1718326253251,-356.17218842,0.00024109,2]
[329410335,1718326253266,-500.0,0.00024109,2]
[329410336,1718326253286,-157.96496199,0.00024109,2]
[329410337,1718326253352,-310.86787426,0.00024109,2]
[329410338,1718326253372,-151.0,0.00024109,7]
[329410339,1718326253389,-500.0,0.00024109,2]
[329410340,1718326253402,-273.37281433,0.00024109,2]
[329410341,1718326253414,-500.0,0.00024109,2]
[329410342,1718326253436,-502.75867573,0.00024109,2]
[329410343,1718326253456,-500.0,0.00024109,2]
[329410344,1718326253468,-151.0,0.00024109,7]
[329410345,1718326253479,-151.0,0.00024109,7]
[329410346,1718326253489,-500.0,0.00024109,2]
[329410347,1718326253513,-500.0,0.00024109,2]
[329410348,1718326253548,-500.0,0.00024109,2]
[329410349,1718326253559,-500.0,0.00024109,2]
[329410350,1718326253595,-500.0,0.00024109,2]
[329410351,1718326253622,-500.0,0.00024109,2]
[329410352,1718326253634,-500.0,0.00024109,2]
[329410353,1718326253660,-452.32690558,0.00024109,2]
[329410354,1718326253687,-500.0,0.00024109,2]
[329410355,1718326253702,-500.0,0.00024109,2]
[329410356,1718326253732,-500.0,0.00024109,2]
[329410357,1718326253743,-500.0,0.00024109,2]
[329410358,1718326253773,-423.5291717,0.00024109,2]
[329410359,1718326253785,-500.0,0.00024109,2]
[329410360,1718326253828,-500.0,0.00024109,2]
[329410361,1718326253839,-530.0585286,0.00024109,2]
[329410362,1718326253859,-500.0,0.00024109,2]
[329410363,1718326253874,-500.0,0.00024109,2]
[329410364,1718326253890,-500.0,0.00024109,2]
[329410365,1718326253950,-500.0,0.00024109,2]
[329410366,1718326253997,-500.0,0.00024109,2]
[329410367,1718326254032,-151.41,0.00024109,2]
[329410368,1718326254069,-500.0,0.00024109,2]
[329410369,1718326254103,-500.0,0.00024109,2]
[329410370,1718326254140,-553.86,0.00024109,2]
[329410371,1718326254169,-500.0,0.00024109,2]
[329410372,1718326254224,-500.0,0.00024109,2]
[329410373,1718326254258,-500.0,0.00024109,2]
[329410374,1718326254272,-500.0,0.00024109,2]
[329410375,1718326254315,-500.0,0.00024109,2]
[329410376,1718326254378,-604.04,0.00024109,2]
[329410377,1718326254390,-500.0,0.00024109,2]
[329410378,1718326254413,-500.0,0.00024109,2]
[329410379,1718326254440,-151.0,0.00024109,7]
[329410380,1718326254481,-151.0,0.00024109,7]
[329410381,1718326254499,-500.0,0.00024109,2]
[329410382,1718326254515,-500.0,0.00024109,2]
[329410383,1718326254572,-500.0,0.00024109,2]
[329410384,1718326254587,-151.0,0.00024109,7]
[329410385,1718326254599,-151.0,0.00024109,7]
[329410386,1718326254614,-500.0,0.00024109,2]
[329410387,1718326254630,-500.0,0.00024109,2]
[329410388,1718326254652,-151.0,0.00024109,7]
[329410389,1718326254666,-610.2,0.00024109,2]
[329410390,1718326254689,-555.00264691,0.00024109,2]
[329410391,1718326254716,-500.0,0.00024109,2]
[329410392,1718326254727,-448.34584796,0.00024109,2]
[329410393,1718326254778,-500.0,0.00024109,2]
[329410394,1718326254805,-500.0,0.00024109,2]
[329410395,1718326254838,-151.0,0.00024109,7]
[329410396,1718326254886,-500.0,0.00024109,2]
[329410397,1718326254910,-500.0,0.00024109,2]
[329410398,1718326254928,-151.0,0.00024109,7]
[329410399,1718326254949,-151.0,0.00024109,7]
[329410400,1718326255000,-151.0,0.00024109,7]
[329410401,1718326255011,-151.0,0.00024109,7]
[329410402,1718326255030,-500.0,0.00024109,2]
[329410403,1718326255081,-510.26646253,0.00024109,2]
[329410404,1718326255134,-151.0,0.00024109,7]
[329410405,1718326255165,-153.447692,0.00024109,7]
[329410406,1718326255181,-151.0,0.00024109,7]
[329410407,1718326255214,-500.0,0.00024109,2]
[329410408,1718326255230,-500.0,0.00024109,2]
[329410409,1718326255262,-500.0,0.00024109,2]
[329410410,1718326255284,-500.0,0.00024109,2]
[329410411,1718326255305,-151.0,0.00024109,7]
[329410412,1718326255317,-500.0,0.00024109,2]
[329410413,1718326255344,-151.0,0.00024109,7]
[329410414,1718326255389,-500.0,0.00024109,2]
[329410415,1718326255409,-500.0,0.00024109,2]
[329410416,1718326255431,-500.0,0.00024109,2]
[329410417,1718326255680,-151.0,0.00024109,7]
[329410418,1718326255695,-151.0,0.00024109,7]
[329410419,1718326255713,-763.62,0.00024109,2]
[329410420,1718326255748,-500.0,0.00024109,2]
[329410421,1718326255782,-500.0,0.00024109,2]
[329410422,1718326255835,-500.0,0.00024109,2]
[329410423,1718326255852,-500.0,0.00024109,2]
[329410424,1718326255885,-500.0,0.00024109,2]
[329410425,1718326255928,-500.0,0.00024109,2]
[329410426,1718326255956,-500.0,0.00024109,2]
[329410427,1718326255973,-500.0,0.00024109,2]
[329410428,1718326255985,-500.0,0.00024109,2]
[329410429,1718326255998,-500.0,0.00024109,2]
[329410430,1718326256012,-500.0,0.00024109,2]
[329410431,1718326256036,-500.0,0.00024109,2]
[329410432,1718326256050,-500.0,0.00024109,2]
[329410433,1718326256089,-500.0,0.00024109,2]
[329410434,1718326256195,-219.962182,0.00024109,7]
[329410435,1718326256207,-500.0,0.00024109,2]
[329410436,1718326256268,-500.0,0.00024109,2]
[329410437,1718326256299,-500.0,0.00024109,2]
[329410438,1718326256360,-500.0,0.00024109,2]
[329410439,1718326256378,-151.0,0.00024109,7]
[329410440,1718326256399,-151.0,0.00024109,7]
[329410441,1718326256496,-507.71142985,0.00024109,2]
[329410442,1718326256510,-500.0,0.00024109,2]
[329410443,1718326256531,-151.0,0.00024109,7]
[329410444,1718326256554,-500.0,0.00024109,2]
[329410445,1718326256588,-500.0,0.00024109,2]
[329410446,1718326256638,-500.0,0.00024109,2]
[329410447,1718326256657,-500.0,0.00024109,2]
[329410448,1718326256677,-340.98865061,0.00024109,2]
[329410449,1718326256705,-500.0,0.00024109,2]
[329410450,1718326256717,-176.55705335,0.00024109,2]
[329410451,1718326256729,-500.0,0.00024109,2]
[329410452,1718326256757,-500.0,0.00024109,2]
[329410453,1718326256768,-500.0,0.00024109,2]
[329410454,1718326256778,-500.0,0.00024109,2]
[329410455,1718326256792,-500.0,0.00024109,2]
[329410456,1718326256808,-500.0,0.00024109,2]
[329410457,1718326256819,-500.0,0.00024109,2]
[329410458,1718326256865,-500.0,0.00024109,2]
[329410459,1718326256890,-500.0,0.00024109,2]
[329410460,1718326256917,-500.0,0.00024109,2]
[329410461,1718326256942,-500.0,0.00024109,2]
[329410462,1718326256964,-595.17,0.00024109,2]
[329410463,1718326256993,-500.0,0.00024109,2]
[329410464,1718326257026,-500.0,0.00024109,2]
[329410465,1718326257056,-517.3893749,0.00024109,2]
[329410466,1718326257121,-500.0,0.00024109,2]
[329410467,1718326257131,-500.0,0.00024109,2]
[329410468,1718326257144,-538.09,0.00024109,2]
[329410469,1718326257162,-500.0,0.00024109,2]
[329410470,1718326257190,-500.0,0.00024109,2]
[329410471,1718326257227,-504.13,0.00024109,2]
[329410472,1718326257275,-500.0,0.00024109,2]
[329410473,1718326257286,-500.0,0.00024109,2]
[329410474,1718326257298,-500.0,0.00024109,2]
[329410475,1718326257321,-500.0,0.00024109,2]
[329410476,1718326257345,-500.0,0.00024109,2]
[329410477,1718326257372,-151.0,0.00024109,7]
[329410478,1718326257383,-500.0,0.00024109,2]
[329410479,1718326257428,-500.0,0.00024109,2]
[329410480,1718326257443,-640.07,0.00024109,2]
[329410481,1718326257520,-500.0,0.00024109,2]
[329410482,1718326257564,-500.0,0.00024109,2]
[329410483,1718326257574,-500.0,0.00024109,2]
[329410484,1718326257586,-500.0,0.00024109,2]
[329410485,1718326257596,-500.0,0.00024109,2]
[329410486,1718326257609,-500.0,0.00024109,2]
[329410487,1718326257641,-500.0,0.00024109,2]
[329410488,1718326257672,-500.0,0.00024109,2]
[329410489,1718326257683,-500.0,0.00024109,2]
[329410490,1718326257697,-500.0,0.00024109,2]
[329410491,1718326257711,-500.0,0.00024109,2]
[329410492,1718326257723,-500.0,0.00024109,2]
[329410493,1718326257768,-500.0,0.00024109,2]
[329410494,1718326257779,-504.00459444,0.00024109,2]
[329410495,1718326257795,-510.88153762,0.00024109,2]
[329410496,1718326257856,-151.0,0.00024109,7]
[329410497,1718326257873,-500.0,0.00024109,2]
[329410498,1718326257884,-151.0,0.00024109,7]
[329410499,1718326257903,-500.0,0.00024109,2]
[329410500,1718326257919,-534.56,0.00024109,2]
[329410501,1718326257931,-500.0,0.00024109,2]
[329410502,1718326257948,-500.0,0.00024109,2]
[329410503,1718326257961,-500.0,0.00024109,2]
[329410504,1718326257975,-500.0,0.00024109,2]
[329410505,1718326257998,-500.0,0.00024109,2]
[329410506,1718326258013,-500.0,0.00024109,2]
[329410507,1718326258039,-500.0,0.00024109,2]
[329410508,1718326258078,-500.0,0.00024109,2]
[329410509,1718326258220,-500.0,0.00024109,2]
[329410510,1718326258236,-500.0,0.00024109,2]
[329410511,1718326258261,-500.0,0.00024109,2]
[329410512,1718326258284,-151.0,0.00024109,7]
[329410513,1718326258309,-500.0,0.00024109,2]
[329410514,1718326258320,-151.0,0.00024109,7]
[329410515,1718326258349,-500.0,0.00024109,2]
[329410516,1718326258372,-500.0,0.00024109,2]
[329410517,1718326258383,-500.0,0.00024109,2]
[329410518,1718326258395,-500.0,0.00024109,2]
[329410519,1718326258412,-529.59302452,0.00024109,2]
[329410520,1718326258468,-250.0,0.00024109,2]
[329410521,1718326258491,-500.0,0.00024109,2]
[329410522,1718326258507,-500.0,0.00024109,2]
[329410523,1718326258525,-500.0,0.00024109,2]
[329410524,1718326258538,-500.0,0.00024109,2]
[329410525,1718326258562,-500.0,0.00024109,2]
[329410526,1718326258574,-500.0,0.00024109,2]
[329410527,1718326258602,-151.0,0.00024109,7]
[329410528,1718326258625,-151.0,0.00024109,7]
[329410529,1718326258642,-500.0,0.00024109,2]
[329410530,1718326258670,-500.0,0.00024109,2]
[329410531,1718326258682,-500.0,0.00024109,2]
[329410532,1718326258702,-151.0,0.00024109,7]
[329410533,1718326258720,-151.0,0.00024109,7]
[329410534,1718326258752,-500.0,0.00024109,2]
[329410535,1718326258774,-600.51,0.00024109,2]
[329410536,1718326258844,-500.0,0.00024109,2]
[329410537,1718326258878,-500.0,0.00024109,2]
[329410538,1718326258906,-641.17,0.00024109,2]
[329410539,1718326258916,-500.0,0.00024109,2]
[329410540,1718326258931,-517.4101247,0.00024109,2]
[329410541,1718326258949,-500.0,0.00024109,2]
[329410542,1718326258976,-500.0,0.00024109,2]
[329410543,1718326259012,-500.0,0.00024109,2]
[329410544,1718326259035,-500.0,0.00024109,2]
[329410545,1718326259079,-500.0,0.00024109,2]
[329410546,1718326259091,-500.0,0.00024109,2]
[329410547,1718326259112,-500.0,0.00024109,2]
[329410548,1718326259125,-263.55924932,0.00024109,2]
[329410549,1718326259137,-506.33,0.00024109,2]
[329410550,1718326259169,-500.0,0.00024109,2]
[329410551,1718326259180,-500.0,0.00024109,2]
[329410552,1718326259193,-570.32,0.00024109,2]
[329410553,1718326259218,-151.0,0.00024109,7]
[329410554,1718326259250,-505.28384914,0.00024109,2]
[329410555,1718326259262,-158.776451,0.00024109,7]
[329410556,1718326259283,-500.0,0.00024109,2]
[329410557,1718326259317,-500.0,0.00024109,2]
[329410558,1718326259335,-500.0,0.00024109,2]
[329410559,1718326259392,-500.0,0.00024109,2]
[329410560,1718326259428,-500.0,0.00024109,2]
[329410561,1718326259481,-500.0,0.00024109,2]
[329410562,1718326259534,-500.0,0.00024109,2]
[329410563,1718326259548,-503.94752091,0.00024109,2]
[329410564,1718326259573,-500.0,0.00024109,2]
[329410565,1718326259674,-500.0,0.00024109,2]
[329410566,1718326259725,-500.0,0.00024109,2]
[329410567,1718326259783,-500.0,0.00024109,2]
[329410568,1718326259808,-500.0,0.00024109,2]
[329410569,1718326259819,-500.0,0.00024109,2]
[329410570,1718326259830,-500.0,0.00024109,2]
[329410571,1718326259855,-493.64787806,0.00024109,2]
[329410572,1718326259878,-500.0,0.00024109,2]
[329410573,1718326259908,-756.62,0.00024109,2]
[329410574,1718326259919,-500.0,0.00024109,2]
[329410575,1718326259932,-500.0,0.00024109,2]
[329410576,1718326259945,-500.0,0.00024109,2]
[329410577,1718326259955,-500.0,0.00024109,2]
[329410578,1718326259971,-500.0,0.00024109,2]
[329410579,1718326259982,-500.0,0.00024109,2]
[329410580,1718326259993,-503.59062058,0.00024109,2]
[329410581,1718326260048,-500.0,0.00024109,2]
[329410582,1718326260136,-500.0,0.00024109,2]
[329410583,1718326260157,-500.0,0.00024109,2]
[329410584,1718326260184,-500.0,0.00024109,2]
[329410585,1718326260201,-500.0,0.00024109,2]
[329410586,1718326260215,-500.0,0.00024109,2]
[329410587,1718326260226,-500.0,0.00024109,2]
[329410588,1718326260249,-563.77676974,0.00024109,2]
[329410589,1718326260261,-500.0,0.00024109,2]
[329410590,1718326260275,-500.0,0.00024109,2]
[329410591,1718326260297,-500.0,0.00024109,2]
[329410592,1718326260320,-500.0,0.00024109,2]
[329410593,1718326260356,-500.0,0.00024109,2]
[329410594,1718326260369,-500.0,0.00024109,2]
[329410595,1718326260384,-500.0,0.00024109,2]
[329410596,1718326260396,-500.0,0.00024109,2]
[329410597,1718326260439,-188.01,0.00024109,2]
[329410598,1718326260472,-541.44,0.00024109,2]
[329410599,1718326260489,-500.0,0.00024109,2]
[329410600,1718326260591,-500.0,0.00024109,2]
[329410601,1718326260624,-500.0,0.00024109,2]
[329410602,1718326260637,-151.0,0.00024109,7]
[329410603,1718326260691,-151.0,0.00024109,7]
[329410604,1718326260732,-500.0,0.00024109,2]
[329410605,1718326260761,-500.0,0.00024109,2]
[329410606,1718326260772,-500.0,0.00024109,2]
[329410607,1718326260783,-500.0,0.00024109,2]
[329410608,1718326260806,-500.0,0.00024109,2]
[329410609,1718326260819,-500.0,0.00024109,2]
[329410610,1718326260831,-500.0,0.00024109,2]
[329410611,1718326260860,-500.0,0.00024109,2]
[329410612,1718326260876,-151.0,0.00024109,7]
[329410613,1718326260888,-500.0,0.00024109,2]
[329410614,1718326260906,-151.0,0.00024109,7]
[329410615,1718326260932,-500.0,0.00024109,2]
[329410616,1718326260953,-500.0,0.00024109,2]
[329410617,1718326260965,-500.0,0.00024109,2]
[329410618,1718326260994,-303.28106751,0.00024109,2]
[329410619,1718326261012,-151.0,0.00024109,7]
[329410620,1718326261038,-500.0,0.00024109,2]
[329410621,1718326261050,-531.1,0.00024109,2]
[329410622,1718326261061,-500.0,0.00024109,2]
[329410623,1718326261072,-280.01799638,0.00024109,2]
[329410624,1718326261096,-307.363228,0.00024109,7]
[329410625,1718326261111,-307.363228,0.00024109,7]
[329410626,1718326261138,-500.0,0.00024109,2]
[329410627,1718326261168,-525.65433253,0.00024109,2]
[329410628,1718326261206,-500.0,0.00024109,2]
[329410629,1718326261248,-500.0,0.00024109,2]
[329410630,1718326261262,-500.0,0.00024109,2]
[329410631,1718326261273,-500.0,0.00024109,2]
[329410632,1718326261284,-500.0,0.00024109,2]
[329410633,1718326261295,-500.0,0.00024109,2]
[329410634,1718326261308,-500.0,0.00024109,2]
[329410635,1718326261332,-500.0,0.00024109,2]
[329410636,1718326261372,-341.652658,0.00024109,7]
[329410637,1718326261411,-341.652658,0.00024109,7]
[329410638,1718326261447,-500.0,0.00024109,2]
[329410639,1718326261459,-307.363228,0.00024109,7]
[329410640,1718326261475,-500.0,0.00024109,2]
[329410641,1718326261509,-307.363228,0.00024109,7]
[329410642,1718326261522,-341.652658,0.00024109,7]
[329410643,1718326261569,-500.0,0.00024109,2]
[329410644,1718326261621,-500.0,0.00024109,2]
[329410645,1718326261645,-341.652658,0.00024109,7]
[329410646,1718326261687,-151.0,0.00024109,7]
[329410647,1718326261744,-500.0,0.00024109,2]
[329410648,1718326261771,-500.0,0.00024109,2]
[329410649,1718326261807,-500.0,0.00024109,2]
[329410650,1718326261845,-399.31992871,0.00024109,2]
[329410651,1718326261867,-500.0,0.00024109,2]
[329410652,1718326261878,-871.93,0.00024109,2]
[329410653,1718326261908,-500.0,0.00024109,2]
[329410654,1718326261927,-522.80913058,0.00024109,2]
[329410655,1718326262025,-500.0,0.00024109,2]
[329410656,1718326262037,-248.48406471,0.00024109,2]
[329410657,1718326262060,-573.32,0.00024109,2]
[329410658,1718326262071,-500.0,0.00024109,2]
[329410659,1718326262102,-500.0,0.00024109,2]